bitfinex/quotes_SOLUSD_20250305
["timestamp","ask_amount","ask_price","bid_price","bid_amount"]
[1741185278917,20.0,143.04,142.99,0.033]
[1741185279230,20.0,143.0,142.99,0.033]
[1741185279935,20.0,142.96,142.95,15.44934702]
[1741185280747,20.0,143.05,142.95,15.44934702]
[1741185280920,0.28432314,143.04,142.95,15.44934702]
[1741185281310,0.14216157,143.02,142.95,15.44934702]
[1741185281538,20.0,143.0,142.95,15.44934702]
[1741185282042,6.1499,142.99,142.92,1.8875651]
[1741185282228,0.14216157,142.96,142.84,0.033]
[1741185282425,0.14216157,142.98,142.84,0.033]
[1741185282426,0.28432314,142.92,142.84,0.033]
[1741185282745,1.9999,142.93,142.84,0.033]
[1741185282746,7.6,142.93,142.84,0.033]
[1741185282926,6.1499,142.95,142.84,0.033]
[1741185283116,2.808853,142.96,142.84,72.16819126]
[1741185283322,0.28432314,142.99,142.85,0.14216157]
[1741185283828,13.7459,143.0,142.87,53.4855424]
[1741185284032,6.1059,143.0,142.9,0.28432314]
[1741185284231,6.2675,143.05,142.9,0.28432314]
[1741185284438,82.9,143.04,142.9,53.76986554]
[1741185284634,82.9,143.03,142.92,0.28432314]
[1741185284850,82.9,143.02,142.94,0.28432314]
[1741185285154,82.9,143.02,142.93,0.28432314]
[1741185285344,82.9,143.02,142.92,18.933972]
[1741185285532,82.9,143.02,142.94,18.933972]
[1741185285730,82.9,143.04,142.94,18.933972]
[1741185286043,82.4,143.08,142.99,72.4195144]
[1741185286341,88.4258,143.15,143.02,53.62770397]
[1741185286543,88.4258,143.15,143.04,0.28432314]
[1741185286742,20.0,143.12,143.04,0.28432314]
[1741185286952,20.0,143.12,143.04,0.14216157]
[1741185287140,88.4258,143.15,143.03,0.28432314]
[1741185288026,20.0,143.12,143.03,0.28432314]
[1741185288226,82.4,143.15,143.05,0.28432314]
[1741185288435,10.8952816,143.16,143.07,0.28432314]
[1741185288852,82.4,143.15,143.06,18.64964886]
[1741185289041,20.0,143.12,143.04,0.28432314]
[1741185289231,20.0,143.12,143.04,18.933972]
[1741185289430,82.4,143.15,143.07,18.933972]
[1741185289847,10.8952816,143.16,143.04,90.28432314]
[1741185290031,82.4,143.19,143.08,0.28432314]
[1741185290353,82.4,143.19,143.08,18.933972]
[1741185290538,20.0,143.16,143.08,18.933972]
[1741185290742,82.4,143.19,143.11,0.14216157]
[1741185290939,6.6495,143.25,143.11,0.14216157]
[1741185291143,20.0,143.21,143.08,53.76986554]
[1741185291342,20.0,143.2,143.1,0.14216157]
[1741185291554,82.4,143.23,143.12,0.28432314]
[1741185291732,82.4,143.23,143.15,0.14216157]
[1741185292049,82.4,143.26,143.17,0.14216157]
[1741185292246,20.0,143.23,143.17,0.14216157]
[1741185292715,20.0,143.23,143.12,1.46628323]
[1741185292827,0.03,143.15,143.13,0.28432314]
[1741185293228,0.03,143.15,143.13,18.933972]
[1741185293568,0.03,143.15,143.14,1.60866599]
[1741185293731,0.03,143.15,143.1,53.4855424]
[1741185293938,0.03,143.15,143.11,0.28432314]
[1741185294134,0.03,143.15,143.11,18.933972]
[1741185294334,0.03,143.15,143.1,0.28432314]
[1741185294564,0.03,143.15,143.08,1.46700067]
[1741185294761,0.03,143.15,143.09,18.64964886]
[1741185295054,0.03,143.15,143.12,0.14216157]
[1741185295233,0.03,143.15,143.14,0.14216157]
[1741185295436,0.03,143.15,143.14,0.28432314]
[1741185295651,0.03,143.15,143.14,18.933972]
[1741185295831,0.03,143.15,143.14,330.933972]
[1741185296357,0.03,143.15,143.14,393.0125144]
[1741185296558,0.03,143.15,143.14,339.526972]
[1741185297145,0.03,143.15,143.14,339.38481043]
[1741185297345,0.03,143.15,143.14,332.76821043]
[1741185297853,0.03,143.27,143.14,422.910372]
[1741185298039,0.03,143.27,143.2,72.4195144]
[1741185298237,0.03,143.27,143.23,0.14216157]
[1741185298632,0.03,143.27,143.25,0.14216157]
[1741185299753,0.03,143.27,143.22,0.28432314]
[1741185300055,0.03,143.27,143.24,0.28432314]
[1741185300242,0.03,143.27,143.24,18.933972]
[1741185300430,0.03,143.27,143.26,18.79181043]
[1741185300637,0.03,143.27,143.26,72.4195144]
[1741185300832,0.03,143.27,143.26,18.933972]
[1741185301143,0.03,143.27,143.26,330.933972]
[1741185301339,0.03,143.27,143.26,330.79181043]
[1741185301551,0.03,143.27,143.26,312.0]
[1741185301729,0.03,143.27,143.21,6.6646]
[1741185301935,0.03,143.27,143.25,0.14216157]
[1741185302153,0.03,143.27,143.24,0.14216157]
[1741185302537,0.03,143.27,143.23,18.933972]
[1741185302737,0.03,143.27,143.23,18.79181043]
[1741185302937,0.03,143.27,143.21,6.6646]
[1741185303154,0.03,143.27,143.22,0.28432314]
[1741185303353,0.03,143.27,143.22,20.39992064]
[1741185303558,0.03,143.27,143.24,0.28432314]
[1741185303764,0.03,143.27,143.24,0.14216157]
[1741185303954,0.03,143.27,143.26,0.14216157]
[1741185304146,0.03,143.27,143.26,1.60752168]
[1741185304344,0.03,143.27,143.26,156.18487451]
[1741185304660,0.03,143.27,143.26,413.233972]
[1741185304839,0.03,143.27,143.26,466.7195144]
[1741185305042,0.03,143.3,143.27,18.933972]
[1741185305247,0.03,143.3,143.29,18.933972]
[1741185305545,0.03,143.3,143.29,244.7195144]
[1741185305756,0.03,143.34,143.31,18.933972]
[1741185305943,0.03,143.36,143.33,72.4195144]
[1741185306257,0.03,143.42,143.37,0.28432314]
[1741185306464,0.03,143.42,143.41,53.76986554]
[1741185306759,0.03,143.42,143.41,0.28432314]
[1741185307067,0.03,143.42,143.41,53.76986554]
[1741185307261,0.03,143.42,143.41,254.15396735]
[1741185307468,0.03,143.42,143.41,191.233972]
[1741185307641,0.03,143.42,143.41,18.64964886]
[1741185307850,0.03,143.42,143.41,18.933972]
[1741185308168,0.03,143.42,143.39,0.14216157]
[1741185308367,0.03,143.42,143.38,312.0]
[1741185308666,0.03,143.42,143.36,0.14216157]
[1741185308859,0.03,143.42,143.36,1.74850377]
[1741185309055,0.03,143.42,143.38,0.28432314]
[1741185309264,0.03,143.42,143.41,53.76986554]
[1741185309461,0.03,143.49,143.42,18.933972]
[1741185309767,0.03,143.49,143.44,18.933972]
[1741185310070,0.03,143.49,143.47,0.14216157]
[1741185310266,0.03,143.49,143.48,18.79181043]
[1741185310468,0.03,143.49,143.48,18.933972]
[1741185310868,0.03,143.49,143.48,72.4195144]
[1741185311372,0.03,143.49,143.48,191.233972]
[1741185311568,0.03,143.49,143.48,0.14216157]
[1741185311750,0.03,143.49,143.48,312.28432314]
[1741185311953,0.03,143.49,143.48,330.933972]
[1741185312165,0.03,143.49,143.48,18.933972]
[1741185312772,0.03,143.49,143.48,20.39709869]
[1741185312971,0.03,143.49,143.48,73.88264109]
[1741185313178,0.03,143.49,143.48,18.933972]
[1741185313364,0.03,143.49,143.48,18.64964886]
[1741185313760,0.03,143.49,143.48,18.933972]
[1741185313958,0.03,143.49,143.48,18.64964886]
[1741185314155,0.03,143.49,143.48,18.933972]
[1741185314370,0.03,143.49,143.48,80.85195581]
[1741185314557,0.03,143.49,143.48,130.85195581]
[1741185314749,0.03,143.49,143.48,123.88235581]
[1741185314960,0.03,143.52,143.51,50.28432314]
[1741185315272,0.9169295,143.64,143.54,18.933972]
[1741185315463,0.9169295,143.64,143.58,0.14216157]
[1741185315857,82.4,143.63,143.53,0.28432314]
[1741185316064,20.03,143.6,143.53,0.28432314]
[1741185316263,0.03,143.6,143.53,0.28432314]
[1741185316476,0.03,143.6,143.53,18.933972]
[1741185316792,82.4,143.59,143.5,7.9]
[1741185316953,82.4,143.59,143.51,18.933972]
[1741185317153,82.4,143.59,143.5,0.14216157]
[1741185317367,20.0,143.56,143.52,18.933972]
[1741185317575,0.03,143.6,143.55,0.14216157]
[1741185317874,0.03,143.6,143.57,0.28432314]
[1741185318084,0.03,143.6,143.59,72.4195144]
[1741185318295,0.9169295,143.64,143.61,0.28432314]
[1741185318453,0.9169295,143.64,143.63,72.4195144]
[1741185318777,0.03,143.66,143.63,72.4195144]
[1741185318778,0.03,143.66,143.63,384.4195144]
[1741185318973,0.03,143.66,143.65,72.4195144]
[1741185319279,0.03,143.66,143.65,18.933972]
[1741185320059,0.03,143.66,143.63,0.14216157]
[1741185320273,0.03,143.66,143.6,1.46161837]
[1741185320470,0.03,143.66,143.59,8.00431837]
[1741185320777,0.03,143.66,143.6,54.94743325]
[1741185320983,0.03,143.66,143.61,53.4855424]
[1741185321187,0.03,143.66,143.61,1.46153999]
[1741185321357,0.03,143.66,143.56,3.38637381]
[1741185321558,0.03,143.66,143.56,10.35207381]
[1741185321755,0.03,143.66,143.57,72.4195144]
[1741185321959,0.03,143.66,143.59,18.64964886]
[1741185322279,0.03,143.66,143.58,1.46195183]
[1741185322495,0.03,143.66,143.62,0.28432314]
[1741185322659,0.03,143.66,143.64,0.28432314]
[1741185322871,0.03,143.66,143.65,18.933972]
[1741185323691,0.03,143.66,143.58,1.4612573]
[1741185323885,0.03,143.66,143.56,3.38629537]
[1741185324079,0.03,143.66,143.58,53.4855424]
[1741185324394,0.03,143.66,143.62,72.4195144]
[1741185324581,0.03,143.66,143.65,0.14216157]
[1741185324989,0.03,143.66,143.64,18.79181043]
[1741185325307,0.03,143.66,143.63,0.28432314]
[1741185325472,0.03,143.66,143.65,18.933972]
[1741185325668,0.03,143.66,143.65,330.933972]
[1741185325891,0.03,143.66,143.65,330.79181043]
[1741185326109,0.03,143.66,143.57,8.06]
[1741185326407,20.0,143.65,143.57,1.46191283]
[1741185326596,0.03,143.66,143.54,172.3]
[1741185326597,20.0,143.63,143.54,172.3]
[1741185326770,20.0,143.61,143.51,174.1908]
[1741185326969,20.0,143.61,143.52,1.46257296]
[1741185327166,20.0,143.61,143.52,54.94811536]
[1741185327377,82.4,143.62,143.49,172.3]
[1741185327584,82.4,143.6,143.5,1.46271551]
[1741185327780,82.4,143.6,143.51,18.933972]
[1741185328095,82.4,143.6,143.5,1.46271551]
[1741185328481,82.4,143.6,143.51,18.64964886]
[1741185328684,82.4,143.6,143.54,0.28432314]
[1741185328884,82.4,143.65,143.54,0.28432314]
[1741185329089,0.03,143.63,143.54,312.0]
[1741185329273,0.03,143.63,143.53,0.033]
[1741185330001,0.03,143.63,143.54,0.28432314]
[1741185330373,0.03,143.63,143.53,0.033]
[1741185330577,82.4,143.62,143.53,0.033]
[1741185330774,20.0,143.57,143.53,0.033]
[1741185330977,20.0,143.54,143.53,0.033]
[1741185331296,20.0,143.54,143.4,91.2003]
[1741185331486,1.9999,143.58,143.4,85.69087748]
[1741185331487,0.28432314,143.55,143.4,85.69087748]
[1741185331678,20.0,143.49,143.39,0.033]
[1741185332390,20.0,143.49,143.39,312.033]
[1741185332595,20.0,143.49,143.4,18.64964886]
[1741185332794,20.0,143.49,143.41,0.28432314]
[1741185333182,20.0,143.49,143.43,0.28432314]
[1741185333573,20.0,143.49,143.39,172.333]
[1741185333782,20.0,143.49,143.39,0.033]
[1741185334017,20.0,143.49,143.41,0.28432314]
[1741185334804,20.0,143.49,143.4,18.64964886]
[1741185335095,20.0,143.49,143.39,0.033]
[1741185335309,82.9,143.48,143.39,0.17516157]
[1741185335607,82.9,143.48,143.4,18.933972]
[1741185335809,82.9,143.48,143.44,18.64964886]
[1741185336008,82.9,143.48,143.45,0.14216157]
[1741185336216,82.9,143.48,143.4,18.64964886]
[1741185336509,82.9,143.48,143.41,0.28432314]
[1741185336726,82.9,143.48,143.41,0.14216157]
[1741185337013,82.9,143.51,143.43,0.14216157]
[1741185337193,82.9,143.5,143.42,18.933972]
[1741185337589,6.0564,143.57,143.44,18.933972]
[1741185337826,20.0,143.53,143.44,0.28432314]
[1741185338146,20.0,143.49,143.39,0.033]
[1741185338352,82.9,143.48,143.41,0.28432314]
[1741185338553,82.9,143.51,143.43,18.933972]
[1741185338846,82.9,143.51,143.43,20.39753878]
[1741185339019,82.9,143.51,143.43,18.933972]
[1741185339218,82.9,143.51,143.46,18.64964886]
[1741185339634,82.9,143.51,143.47,0.14216157]
[1741185339946,82.9,143.51,143.43,0.14216157]
[1741185340131,20.0,143.53,143.44,0.14216157]
[1741185340626,20.0,143.53,143.4,50.0]
[1741185340627,102.9,143.52,143.36,172.3]
[1741185340833,20.0,143.48,143.37,8.43873285]
[1741185341026,20.0,143.47,143.37,0.28432314]
[1741185341241,20.0,143.43,143.34,6.9763]
[1741185341564,82.9,143.45,143.36,18.933972]
[1741185341839,82.9,143.45,143.38,18.933972]
[1741185342733,82.9,143.45,143.39,312.033]
[1741185343140,82.9,143.49,143.44,0.033]
[1741185343353,82.9,143.48,143.44,0.033]
[1741185343933,82.9,143.47,143.44,0.033]
[1741185344313,82.9,143.47,143.39,0.17516157]
[1741185344314,0.28432314,143.46,143.39,0.033]
[1741185344520,82.9,143.45,143.39,0.033]
[1741185344716,101.833972,143.44,143.29,0.033]
[1741185345053,6.5084,143.47,143.29,0.033]
[1741185345054,20.0,143.37,143.29,0.033]
[1741185345365,20.0,143.33,143.29,0.033]
[1741185345850,20.0,143.32,143.29,0.033]
[1741185346924,3.8388,143.39,143.29,0.033]
[1741185346925,82.9,143.31,143.29,0.033]
[1741185347130,20.0,143.28,143.19,82.3]
[1741185347441,20.0,143.24,143.16,1.9539]
[1741185347648,102.9,143.23,143.15,0.033]
[1741185348334,102.9,143.23,143.15,7.0185]
[1741185348531,102.9,143.23,143.16,18.64964886]
[1741185348736,102.9,143.23,143.15,0.033]
[1741185348942,102.9,143.23,143.15,18.966972]
[1741185349140,82.9,143.22,143.15,0.033]
[1741185349349,82.9,143.21,143.15,0.033]
[1741185350744,82.9,143.25,143.16,0.28432314]
[1741185350947,82.9,143.25,143.18,0.28432314]
[1741185352541,82.9,143.25,143.18,7.26842314]
[1741185352746,82.9,143.25,143.2,0.28432314]
[1741185353055,82.9,143.25,143.18,6.9841]
[1741185353056,82.9,143.25,143.18,0.28432314]
[1741185353359,82.9,143.25,143.2,312.0]
[1741185353531,82.9,143.25,143.21,18.64964886]
[1741185353933,82.9,143.25,143.19,18.64964886]
[1741185354236,82.9,143.25,143.2,0.28432314]
[1741185354431,82.9,143.24,143.19,0.31732314]
[1741185354652,0.28432314,143.31,143.19,0.31732314]
[1741185354851,20.0,143.26,143.19,0.033]
[1741185355060,20.0,143.22,143.19,0.033]
[1741185355431,82.9,143.21,143.19,0.033]
[1741185355836,82.9,143.2,143.19,0.033]
[1741185356053,82.9,143.27,143.19,0.033]
[1741185356355,2.0299,143.34,143.19,0.033]
[1741185356356,82.9,143.26,143.19,0.033]
[1741185356580,82.9,143.25,143.19,0.033]
[1741185356862,82.9,143.25,143.19,312.033]
[1741185357058,82.9,143.25,143.2,18.933972]
[1741185357361,82.9,143.25,143.2,0.28432314]
[1741185357745,82.9,143.25,143.19,0.033]
[1741185357944,82.9,143.32,143.2,18.933972]
[1741185358140,82.9,143.31,143.2,101.233972]
[1741185358337,82.9,143.31,143.22,18.933972]
[1741185358549,82.9,143.31,143.24,0.28432314]
[1741185358747,82.9,143.31,143.24,7.26512314]
[1741185359157,82.93,143.34,143.24,8.73063932]
[1741185359456,82.9,143.33,143.26,0.28432314]
[1741185360244,82.9,143.33,143.3,312.0]
[1741185360440,20.0,143.29,143.22,0.14216157]
[1741185360649,20.0,143.29,143.19,0.033]
[1741185360650,20.0,143.25,143.19,0.033]
[1741185360842,82.9,143.24,143.19,0.033]
[1741185361460,82.9,143.24,143.2,18.64964886]
[1741185361856,82.9,143.3,143.21,0.28432314]
[1741185362166,20.0,143.26,143.2,18.64964886]
[1741185362351,20.0,143.22,143.19,0.033]
[1741185362560,82.9,143.21,143.19,0.033]
[1741185363992,82.9,143.2,143.19,0.033]
[1741185364157,82.9,143.2,143.15,0.033]
[1741185364461,82.9,143.19,143.15,0.033]
[1741185364674,82.9,143.26,143.16,0.28432314]
[1741185364978,82.9,143.25,143.2,312.0]
[1741185365173,82.9,143.28,143.21,0.28432314]
[1741185365498,82.9,143.33,143.21,20.39997067]
[1741185365790,82.9,143.32,143.21,20.39981058]
[1741185365993,82.9,143.32,143.21,73.88535298]
[1741185366300,82.9,143.32,143.21,18.933972]
[1741185366663,82.9,143.31,143.2,1.75044202]
[1741185366984,0.03,143.32,143.27,0.28432314]
[1741185367283,0.03,143.32,143.29,0.28432314]
[1741185367472,0.03,143.32,143.25,172.3]
[1741185367678,82.93,143.32,143.23,0.28432314]
[1741185367893,82.9,143.31,143.25,0.28432314]
[1741185368059,82.9,143.31,143.26,20.0]
[1741185368383,0.03,143.32,143.31,0.28432314]
[1741185368592,0.03,143.34,143.33,38.933972]
[1741185368763,0.03,143.34,143.33,100.86076854]
[1741185368963,20.0,143.43,143.34,18.933972]
[1741185369191,82.9,143.46,143.36,72.4195144]
[1741185369362,82.9,143.46,143.38,18.933972]
[1741185369569,20.0,143.43,143.35,0.14216157]
[1741185369766,0.03,143.47,143.31,7.9111]
[1741185369767,20.0,143.42,143.31,7.9111]
[1741185369961,102.9,143.41,143.32,1.46471069]
[1741185370204,102.9,143.41,143.19,6.9836]
[1741185370205,20.0,143.35,143.19,6.9836]
[1741185370405,20.0,143.31,143.18,180.1335295]
[1741185370688,102.9,143.3,143.17,91.8682]
[1741185370867,20.0,143.26,143.17,1.8682]
[1741185371066,82.9,143.25,143.15,0.033]
[1741185371463,82.9,143.24,143.15,0.033]
[1741185371669,82.9,143.23,143.15,0.033]
[1741185371873,82.9,143.22,143.15,0.033]
[1741185372203,0.28432314,143.26,143.15,0.033]
[1741185372494,82.9,143.25,143.15,0.033]
[1741185372695,0.28432314,143.24,143.15,0.033]
[1741185373073,82.9,143.23,143.15,0.033]
[1741185373265,82.9,143.22,143.15,0.033]
[1741185373693,82.9,143.21,143.15,0.033]
[1741185374003,0.28432314,143.2,143.15,0.033]
[1741185374169,0.28432314,143.18,143.06,6.5562]
[1741185374373,20.0,143.16,143.07,18.933972]
[1741185374598,20.0,143.12,143.07,18.933972]
[1741185374891,82.9,143.15,143.07,18.933972]
[1741185375602,82.9,143.15,143.07,18.64964886]
[1741185375767,82.9,143.15,143.08,18.933972]
[1741185375974,20.0,143.11,143.0,6.6562]
[1741185376271,102.9,143.1,143.0,0.033]
[1741185376474,20.0,143.06,143.0,0.033]
[1741185377097,20.0,143.02,143.0,0.033]
[1741185377279,20.0,143.02,142.92,1.9316849]
[1741185377875,20.0,143.02,142.92,23.40036392]
[1741185378084,20.0,143.02,142.92,21.9316849]
[1741185378602,20.0,143.02,142.93,18.64964886]
[1741185378901,0.28432314,143.11,142.95,330.64964886]
[1741185379198,6.5365,143.13,142.98,0.28432314]
[1741185379500,1.9999,143.15,142.98,0.28432314]
[1741185379501,82.9,143.16,143.0,0.28432314]
[1741185379686,82.9,143.15,143.0,0.28432314]
[1741185379892,101.833972,143.14,142.97,0.28432314]
[1741185380092,18.933972,143.12,142.97,0.28432314]
[1741185380525,1.9999,143.06,142.92,1.9646849]
[1741185380680,20.933872,143.04,142.92,1.9646849]
[1741185380880,0.28432314,143.03,142.92,1.9646849]
[1741185381386,82.9,143.02,142.92,1.9646849]
[1741185381587,14.1304,143.06,142.93,18.64964886]
[1741185381787,20.0,143.02,142.92,1.9646849]
[1741185382102,20.0,142.98,142.92,1.9646849]
[1741185382405,102.9,142.98,142.92,1.9646849]
[1741185382603,20.0,142.94,142.92,1.9646849]
[1741185382783,20.0,142.93,142.92,1.9646849]
[1741185383379,21.9999,142.92,142.84,0.033]
[1741185383598,20.0,142.88,142.84,0.033]
[1741185385297,82.9,142.94,142.84,0.033]
[1741185385486,10.0799,142.99,142.85,312.0]
[1741185385805,20.933872,142.95,142.84,0.033]
[1741185386005,101.54964886,142.98,142.78,0.033]
[1741185386006,1.9999,142.84,142.78,0.033]
[1741185386304,0.14216157,142.81,142.64,89.9402332]
[1741185386506,8.2,142.81,142.66,53.4855424]
[1741185386803,0.28432314,142.86,142.67,20.12084812]
[1741185386988,18.933972,142.86,142.67,110.12084812]
[1741185387194,18.933972,142.86,142.67,170.61549052]
[1741185387389,8.2,142.87,142.69,72.13519126]
[1741185387603,82.9,142.88,142.74,18.64964886]
[1741185387808,82.9,142.88,142.76,0.28432314]
[1741185387994,82.9,142.88,142.75,18.14964886]
[1741185388199,83.18432314,142.87,142.69,90.0]
[1741185388410,20.0,142.84,142.69,90.0]
[1741185388610,20.0,142.84,142.7,53.4855424]
[1741185388812,20.0,142.84,142.71,312.0]
[1741185388984,82.9,142.87,142.72,54.95655259]
[1741185389293,20.0,142.83,142.74,0.14216157]
[1741185389686,82.9,142.86,142.73,0.14216157]
[1741185389890,82.9,142.86,142.75,0.14216157]
[1741185390102,82.9,142.92,142.77,53.76986554]
[1741185390309,82.9,142.91,142.77,0.28432314]
[1741185390709,20.0,142.87,142.76,0.28432314]
[1741185391012,20.0,142.86,142.76,18.933972]
[1741185391218,20.0,142.82,142.68,239.8212]
[1741185391393,20.0,142.82,142.69,54.95634153]
[1741185391702,20.0,142.82,142.7,18.79181043]
[1741185391905,20.0,142.82,142.72,0.14216157]
[1741185392211,20.0,142.82,142.72,18.933972]
[1741185392392,20.0,142.82,142.74,0.14216157]
[1741185392590,20.0,142.82,142.73,312.0]
[1741185392896,20.0,142.82,142.67,7.0091]
[1741185393101,20.0,142.82,142.67,98.4802734]
[1741185393301,20.0,142.82,142.67,91.4710418]
[1741185393713,20.0,142.82,142.68,18.64964886]
[1741185393895,20.0,142.82,142.71,0.14216157]
[1741185394220,2.28422314,142.83,142.66,82.3]
[1741185394523,2.28422314,142.83,142.67,18.64964886]
[1741185394726,0.28432314,142.83,142.67,18.64964886]
[1741185395020,0.28432314,142.83,142.67,25.65854886]
[1741185395208,0.28432314,142.83,142.65,89.1]
[1741185395521,83.18432314,142.83,142.67,18.64964886]
[1741185395703,0.28432314,142.82,142.67,330.64964886]
[1741185396098,82.9,142.83,142.68,1.75567876]
[1741185396398,0.28432314,142.82,142.67,18.64964886]
[1741185396737,20.0,142.8,142.68,0.28432314]
[1741185396897,20.0,142.8,142.71,0.14216157]
[1741185397208,20.0,142.8,142.72,18.64964886]
[1741185397404,82.9,142.83,142.69,7.29242314]
[1741185397911,82.9,142.83,142.71,0.14216157]
[1741185397912,20.0,142.8,142.71,0.14216157]
[1741185398325,2.28422314,142.82,142.63,91.0316849]
[1741185398625,22.28422314,142.78,142.63,1.9316849]
[1741185398791,1.9999,142.73,142.63,1.9316849]
[1741185398996,1.9999,142.75,142.63,1.9316849]
[1741185399191,20.0,142.73,142.63,313.9316849]
[1741185399395,21.9999,142.73,142.63,313.9316849]
[1741185399614,20.0,142.73,142.63,313.9316849]
[1741185399823,21.9999,142.73,142.63,313.9316849]
[1741185400026,20.0,142.73,142.63,313.9316849]
[1741185400314,1.9999,142.71,142.63,313.9316849]
[1741185400519,0.28432314,142.72,142.63,1.9316849]
[1741185400727,2.28422314,142.72,142.63,1.9316849]
[1741185400931,0.28432314,142.72,142.63,1.9316849]
[1741185401224,0.28432314,142.73,142.63,1.9316849]
[1741185401426,2.28422314,142.73,142.63,1.9316849]
[1741185401650,2.28422314,142.73,142.6,0.71924024]
[1741185401651,1.9999,142.69,142.6,0.71924024]
[1741185401833,0.28432314,142.68,142.6,0.71924024]
[1741185402131,1.9999,142.65,142.52,0.033]
[1741185402426,0.28432314,142.64,142.52,0.033]
[1741185403005,5.80103222,142.64,142.52,0.033]
[1741185403616,8.56,142.65,142.6,0.033]
[1741185403911,6.331,142.68,142.6,0.033]
[1741185404321,0.14216157,142.67,142.6,0.033]
[1741185404626,6.331,142.68,142.6,0.033]
[1741185404826,8.56,142.73,142.6,0.033]
[1741185405329,0.28432314,142.71,142.6,0.033]
[1741185405517,8.56,142.73,142.6,1.64755527]
[1741185405714,6.5485,142.75,142.61,0.14216157]
[1741185406027,6.5485,142.75,142.62,0.14216157]
[1741185406236,5.674024,142.8,142.64,18.79181043]
[1741185406410,8.4395,142.81,142.66,18.79181043]
[1741185406613,6.4396,142.81,142.67,0.14216157]
[1741185407015,6.4396,142.81,142.7,312.0]
[1741185407216,20.0,142.78,142.62,0.28432314]
[1741185407604,0.28432314,142.77,142.62,0.28432314]
[1741185407812,0.39560003,142.8,142.64,0.28432314]
[1741185408017,6.4396,142.81,142.66,0.14216157]
[1741185408356,6.4396,142.81,142.68,0.14216157]
[1741185408540,6.4396,142.81,142.69,0.14216157]
[1741185408730,82.9,142.8,142.69,0.14216157]
[1741185408936,20.0,142.76,142.69,0.14216157]
[1741185409429,20.0,142.76,142.65,0.28432314]
[1741185410147,20.0,142.76,142.64,1.4714039]
[1741185410356,82.9,142.79,142.69,0.14216157]
[1741185410639,82.9,142.83,142.72,0.14216157]
[1741185410944,82.46164414,142.88,142.75,7.0052]
[1741185410945,82.9,142.88,142.75,7.0052]
[1741185411240,82.9,142.9,142.76,73.88974718]
[1741185411413,82.9,142.9,142.76,123.88974718]
[1741185411739,20.0,142.87,142.76,20.40420478]
[1741185411936,20.0,142.86,142.76,20.40420478]
[1741185412114,102.9,142.86,142.74,0.28432314]
[1741185412313,102.9,142.86,142.74,18.933972]
[1741185412526,20.0,142.82,142.68,88.7502]
[1741185412729,20.0,142.78,142.68,6.4502]
[1741185413146,20.0,142.78,142.76,5.33]
[1741185413441,20.0,142.77,142.66,1.9435]
[1741185413629,102.9,142.77,142.66,1.9435]
[1741185413945,102.9,142.77,142.66,315.41516422]
[1741185414143,102.9,142.77,142.67,18.79181043]
[1741185414350,102.9,142.77,142.66,1.9435]
[1741185414524,102.9,142.77,142.67,18.64964886]
[1741185415333,102.9,142.77,142.68,0.28432314]